bitfinex-derivatives/quotes_ETHF0:USTF0_20251001
["timestamp","ask_amount","ask_price","bid_price","bid_amount"]
[1759321017577,0.41865,4297.5,4297.4,1.15046458]
[1759321017875,0.41865,4297.5,4297.4,0.64797013]
[1759321018077,5.72905,4297.5,4297.4,0.64797013]
[1759321018283,0.41865,4297.5,4297.4,0.64797013]
[1759321018778,0.0232,4297.9,4297.4,0.64797013]
[1759321018779,0.0232,4297.9,4297.4,0.96767013]
[1759321018970,0.41862,4297.8,4297.6,1.15228301]
[1759321019177,0.72902,4297.8,4297.7,0.64797013]
[1759321019478,0.72902,4297.8,4297.7,0.12398013]
[1759321019775,0.72902,4297.8,4297.7,1.3e-07]
[1759321019985,0.72907,4297.3,4297.2,0.00202184]
[1759321020178,0.0232,4297.9,4297.2,0.32172184]
[1759321020483,0.41866,4297.4,4297.3,1.15228301]
[1759321020682,0.41866,4297.4,4297.3,0.3197]
[1759321020884,0.2732,4297.9,4297.3,0.3197]
[1759321021186,0.41862,4297.8,4297.6,0.3197]
[1759321021379,0.3104,4297.4,4297.3,0.83221827]
[1759321021576,0.0232,4297.9,4297.3,0.83221827]
[1759321021778,0.41862,4297.8,4297.6,0.3197]
[1759321022078,0.41864,4297.6,4297.5,0.4513]
[1759321022281,0.0232,4297.9,4297.5,0.1316]
[1759321022483,0.44181,4297.9,4297.7,0.83221827]
[1759321022678,0.3104,4299.1,4297.6,0.41863]
[1759321022679,1.35648,4299.8,4298.5,0.1316]
[1759321022884,0.41853,4298.7,4298.6,1.15120048]
[1759321023580,0.3104,4299.8,4298.6,1.15120048]
[1759321023581,0.41852,4298.8,4298.6,1.15120048]
[1759321023779,0.41852,4298.8,4298.7,0.3197]
[1759321024586,0.41848,4299.3,4298.7,0.3197]
[1759321024778,0.3104,4299.8,4299.0,0.1316]
[1759321024982,0.00170379,4300.0,4299.1,0.3197]
[1759321025180,0.00170379,4300.0,4299.3,0.3197]
[1759321025482,0.02490379,4300.0,4299.6,0.3197]
[1759321025682,0.02490379,4300.0,4299.5,0.96310048]
[1759321025881,0.41843,4299.7,4299.6,0.3197]
[1759321026388,0.44331379,4300.0,4299.6,0.73814]
[1759321026582,0.44331379,4300.0,4299.9,0.3197]
[1759321026583,0.02490379,4300.0,4299.9,0.3197]
[1759321028079,0.02490379,4300.0,4299.9,5.3197]
[1759321028482,0.4183,4301.1,4301.0,0.1316]
[1759321028677,0.7287,4301.1,4300.8,0.3197]
[1759321028885,0.41833,4300.8,4300.7,41.94964251]
[1759321029383,0.4201072,4300.8,4300.7,41.95170493]
[1759321029584,2.091,4302.2,4300.7,41.95170493]
[1759321029585,0.3104,4303.1,4300.8,0.3197]
[1759321029890,0.41814,4302.7,4302.4,0.82994451]
[1759321030193,0.41817,4302.4,4302.3,1.08294451]
[1759321030490,0.41823,4301.8,4301.7,0.82994451]
[1759321030684,0.3104,4301.7,4301.5,1.08294451]
[1759321030885,0.3104,4302.1,4301.3,0.82994451]
[1759321031081,0.41826,4301.6,4301.4,0.253]
[1759321031285,0.3104,4301.9,4301.4,0.253]
[1759321031588,0.72867,4301.5,4301.4,0.253]
[1759321031888,0.3104,4301.5,4301.4,0.88467406]
[1759321032089,0.1323,4302.0,4301.4,0.88467406]
[1759321032382,0.1323,4302.0,4301.5,1.04992406]
[1759321032586,0.72862,4301.9,4301.6,0.95137406]
[1759321032791,0.72862,4301.9,4301.7,0.63167406]
[1759321032981,0.72862,4301.9,4301.8,0.63167406]
[1759321033390,0.73518,4302.3,4301.8,0.88467406]
[1759321033590,0.41819,4302.2,4302.0,0.3197]
[1759321033784,0.4182,4302.1,4302.0,0.3197]
[1759321033985,0.4182,4302.1,4302.0,1.20362914]
[1759321034188,0.7286,4302.1,4302.0,0.63092914]
[1759321035090,0.0066,4302.3,4302.0,0.63092914]
[1759321035290,0.0066,4302.3,4302.1,0.95062914]
[1759321035489,0.0066,4302.3,4302.2,0.63092914]
[1759321036192,0.00247005,4302.4,4302.3,0.3197]
[1759321036393,0.00247005,4302.4,4302.3,0.95062914]
[1759321036895,0.3104,4303.3,4303.1,0.7378]
[1759321037194,0.3104,4303.3,4303.2,0.63092914]
[1759321037394,0.3104,4303.3,4303.1,0.7378]
[1759321037690,0.1323,4304.0,4303.4,0.3197]
[1759321037999,0.00201872,4304.0,4303.9,0.3197]
[1759321038189,0.00201872,4304.0,4303.9,0.95085122]
[1759321038389,0.31241872,4304.0,4303.9,0.63115122]
[1759321038591,0.31241872,4304.0,4303.9,0.00230363]
[1759321039190,3.65251872,4304.0,4303.9,0.00230363]
[1759321039497,8.65251872,4304.0,4303.9,0.00230363]
[1759321040385,8.65251872,4304.0,4302.4,0.3197]
[1759321040386,0.41816,4302.5,4302.4,0.3197]
[1759321040790,0.41819,4302.2,4302.1,0.3197]
[1759321041094,0.41819,4302.2,4302.1,0.94770043]
[1759321041290,0.41819,4302.2,4302.1,0.3197]
[1759321041490,0.41819,4302.2,4302.1,0.32223596]
[1759321041990,3.62598,4302.3,4302.2,0.3197]
[1759321043091,3.2078,4302.3,4302.2,0.3197]
[1759321043998,3.2078,4302.3,4302.2,5.94743691]
[1759321044798,3.2078,4302.3,4302.2,0.5717]
[1759321045095,3.2078,4303.0,4302.2,0.5717]
[1759321045398,0.41816,4302.6,4302.4,0.41816]
[1759321045592,0.41816,4302.6,4302.5,0.3075]
[1759321046298,1.04534,4302.8,4302.1,0.00253596]
[1759321046599,0.41818,4302.3,4302.2,0.252]
[1759321046989,0.41818,4302.3,4302.1,0.00253596]
[1759321047193,0.3231,4302.2,4302.1,0.00253596]
[1759321047993,0.41818,4302.3,4302.1,0.00253596]
[1759321047994,0.41818,4302.3,4302.2,0.3075]
[1759321048198,3.62596,4302.5,4302.3,0.41818]
[1759321048501,3.62596,4302.5,4302.4,0.5585]
[1759321048696,3.62596,4302.5,4302.4,0.251]
[1759321049196,0.41819,4302.2,4302.1,0.00253596]
[1759321049389,0.74129,4302.2,4302.1,0.00253596]
[1759321052100,0.41819,4302.3,4302.1,0.00253596]
[1759321052300,0.3231,4302.2,4302.1,0.00253596]
[1759321052700,0.41819,4302.3,4302.1,0.00253596]
[1759321052906,0.3231,4302.2,4302.1,0.00253596]
[1759321055509,5.3231,4302.2,4302.1,0.00253596]
[1759321056711,0.4521,4302.0,4301.9,0.1859]
[1759321057009,3.9109,4302.0,4301.9,0.1859]
[1759321057211,0.74137,4301.4,4301.3,0.82603907]
[1759321057506,0.74137,4301.4,4301.3,0.83255627]
[1759321057712,0.74137,4301.4,4301.3,0.83471827]
[1759321058398,0.74137,4301.4,4301.3,0.002162]
[1759321058605,3.94917,4301.4,4301.3,0.002162]
[1759321059108,8.94917,4301.4,4301.3,0.002162]
[1759321059304,8.94917,4301.4,4300.2,0.83286123]
[1759321059305,0.74146,4300.4,4300.2,0.83286123]
[1759321059507,0.3231,4300.2,4300.1,0.83286123]
[1759321059709,0.41838,4300.3,4300.1,1.14036123]
[1759321060208,0.3231,4300.2,4300.1,0.835304]
[1759321060412,0.00282294,4300.3,4300.2,0.72588]
[1759321060608,0.00282294,4300.3,4300.2,0.3075]
[1759321061914,0.00282294,4300.3,4300.2,1.13958277]
[1759321062117,0.00282294,4300.3,4300.1,0.83452672]
[1759321062118,0.74148,4300.2,4300.1,0.83452672]
[1759321062409,0.74148,4300.2,4300.1,0.00244277]
[1759321063207,0.8705,4300.0,4299.9,0.186]
[1759321063801,0.3231,4300.0,4299.9,0.186]
[1759321064204,0.3231,4300.0,4299.9,0.18801528]
[1759321064607,0.3231,4300.0,4299.9,0.00201528]
[1759321064814,0.4184,4300.1,4300.0,0.3075]
[1759321065009,0.7415,4300.1,4299.9,0.00201528]
[1759321065209,0.3231,4300.0,4299.9,0.00201528]
[1759321065922,0.4521,4300.0,4299.9,0.00201528]
[1759321066608,0.3231,4300.0,4299.9,0.00201528]
[1759321066808,0.00282294,4300.3,4300.0,0.3075]
[1759321067019,0.00282294,4300.3,4300.2,0.3075]
[1759321067621,0.00282294,4300.3,4300.2,6.13958395]
[1759321067917,0.00282294,4300.3,4300.2,6.55241377]
[1759321068107,0.00282294,4300.3,4300.2,5.3075]
[1759321068307,0.00282294,4300.3,4300.2,46.1075]
[1759321070112,0.00282294,4300.3,4300.2,41.3575]
[1759321070307,0.00282294,4300.3,4300.2,41.1075]
[1759321070510,0.00282294,4300.3,4300.2,41.3575]
[1759321070712,0.00282294,4300.3,4300.2,42.60398602]
[1759321071513,0.00282294,4300.3,4300.2,46.3575]
[1759321072103,0.00282294,4300.3,4300.2,41.1075]
[1759321072312,0.00282294,4300.3,4300.2,41.3575]
[1759321072614,0.00282294,4300.3,4300.2,41.1075]
[1759321072816,0.00282294,4300.3,4300.2,42.60425645]
[1759321073118,0.00282294,4300.3,4300.2,41.3575]
[1759321073917,0.00282294,4300.3,4300.2,41.1075]
[1759321074112,0.00282294,4300.3,4300.2,42.35433206]
[1759321074311,0.00282294,4300.3,4300.2,42.60333206]
[1759321074714,0.32902294,4300.3,4300.2,41.1075]
[1759321074918,0.32902294,4300.3,4300.2,41.049]
[1759321075120,0.3262,4300.1,4300.0,0.6044]
[1759321075316,0.00282294,4300.3,4300.2,0.75198]
[1759321075613,0.00282294,4300.3,4300.2,1.58381844]
[1759321076016,0.00282294,4300.3,4300.2,1.16543844]
[1759321076318,0.32902294,4300.3,4300.2,0.83183844]
[1759321076517,0.32902294,4300.3,4300.2,1.08083844]
[1759321079229,0.32902294,4300.3,4300.0,1.01783844]
[1759321079230,0.74458,4300.2,4300.0,1.01783844]
[1759321079526,0.74458,4300.2,4300.0,0.435]
[1759321079527,0.3262,4300.1,4300.0,0.435]
[1759321080330,0.00282294,4300.3,4300.2,0.75198]
[1759321080523,0.00282294,4300.3,4300.2,1.58381844]
[1759321080724,0.00282294,4300.3,4300.2,0.75198]
[1759321080926,0.00282294,4300.3,4300.2,1.00098]
[1759321083125,0.00282294,4300.3,4300.2,0.99998]
[1759321083928,0.00282294,4300.3,4300.2,7.24681206]
[1759321084130,0.0215,4300.7,4300.6,0.75195]
[1759321084430,3.2078,4301.6,4301.5,0.87766]
[1759321084624,3.2078,4301.6,4301.5,1.12566]
[1759321085023,3.21039974,4301.6,4301.5,41.92566]
[1759321085219,0.00259974,4301.6,4301.5,45.13346]
[1759321085530,3.2078,4302.6,4302.5,0.3336]
[1759321085722,0.3262,4302.9,4302.8,0.41813]
[1759321085926,3.2078,4303.1,4303.0,0.41811]
[1759321086126,3.2078,4303.1,4303.0,0.75171]
[1759321086325,3.21046408,4303.1,4303.0,0.7544259]
[1759321086521,3.21046408,4303.1,4302.6,0.83316314]
[1759321086522,0.74434,4302.7,4302.6,0.83316314]
[1759321086721,0.3262,4302.1,4302.0,0.83316314]
[1759321086930,0.74443,4301.8,4301.7,0.83316314]
[1759321087128,0.74443,4301.8,4301.7,1.08216314]
[1759321087330,3.2078,4302.1,4301.8,0.3336]
[1759321087533,0.41824,4301.7,4301.6,0.83316314]
[1759321087728,0.74444,4301.7,4301.6,0.25158272]
[1759321088527,0.41824,4301.7,4301.6,0.58518272]
[1759321088723,1.67025974,4306.2,4301.6,0.58518272]
[1759321088724,0.4562,4302.5,4301.7,0.3336]
[1759321088925,0.3262,4302.5,4301.9,1.16676314]
[1759321089226,3.62596,4302.6,4302.5,0.3336]
[1759321089429,0.3262,4302.3,4302.2,0.3336]
[1759321089733,0.41817,4302.4,4302.3,0.3336]
[1759321090033,0.3262,4302.3,4302.2,0.249]
[1759321090239,0.3262,4302.1,4302.0,1.01906314]
[1759321090429,0.3262,4302.1,4302.0,1.26806314]
[1759321090734,0.3262,4302.1,4302.0,0.4349]
[1759321091432,3.534,4302.6,4302.0,0.8943]
[1759321091634,3.62596,4302.6,4302.5,0.3336]
[1759321091833,3.2078,4302.6,4302.5,0.7084]
[1759321092033,3.95215,4302.6,4302.5,0.249]
[1759321092238,0.00266408,4303.1,4302.6,0.3336]
[1759321092531,3.62592,4302.9,4302.7,0.83316314]
[1759321092726,0.74439,4302.2,4302.0,0.80935723]
[1759321092927,0.3262,4302.1,4302.0,0.1859]
[1759321093137,0.13,4302.5,4302.0,3.3937]
[1759321093430,0.54816,4302.5,4302.2,0.41819]
[1759321093636,0.74436,4302.5,4302.3,0.3336]
[1759321093824,0.74436,4302.5,4302.3,0.75178]
[1759321094129,0.41818,4302.3,4302.1,1.0822763]
[1759321094322,0.3262,4302.2,4302.1,0.8312763]
[1759321094528,0.4562,4302.0,4301.9,0.8312763]
[1759321094723,0.3262,4302.0,4301.9,1.0822763]
[1759321094929,0.4562,4302.0,4301.9,1.0822763]
[1759321095132,0.4562,4302.0,4301.7,0.8312763]
[1759321095133,0.41822,4301.9,4301.7,0.8312763]
[1759321095332,0.74442,4301.9,4301.7,0.8312763]
[1759321095528,0.3262,4301.8,4301.7,0.8312763]
[1759321095730,0.3262,4301.8,4301.7,1.4158763]
[1759321096035,0.41822,4301.9,4301.8,0.3336]
[1759321096228,0.3262,4302.3,4301.8,0.3336]
[1759321096430,0.41819,4302.2,4302.0,0.3336]
[1759321096632,0.41821,4302.0,4301.9,41.9656353]
[1759321096832,0.74441,4302.0,4301.9,41.2369]
[1759321097036,0.74441,4302.0,4301.9,0.4369]
[1759321097333,0.87441,4302.0,4301.9,0.4369]
[1759321097835,0.87441,4302.0,4301.9,0.81005389]
[1759321098035,0.87441,4302.0,4301.9,0.1859]
[1759321099036,0.87441,4302.0,4301.9,0.81005389]
[1759321099430,0.87441,4302.0,4301.9,0.1859]
[1759321099729,0.41821,4302.0,4301.9,0.7764]
[1759321100038,0.75441,4302.0,4301.9,0.4369]
[1759321100230,0.3362,4302.0,4301.9,0.251]
[1759321100432,0.4182,4302.1,4302.0,0.3395]
[1759321100832,0.41819,4302.3,4302.1,0.4182]
[1759321101034,0.41819,4302.3,4302.2,0.3395]
[1759321101234,0.41819,4302.3,4302.2,1.1715353]
[1759321102040,3.544,4302.8,4302.4,0.3395]
[1759321102234,0.41814,4302.7,4302.4,0.25]
[1759321102427,3.544,4302.8,4302.4,0.5895]
[1759321102428,0.41816,4302.5,4302.4,0.5895]
[1759321102632,0.75436,4302.5,4302.4,0.5895]
[1759321102833,0.75439,4302.2,4302.1,0.8320353]
[1759321103034,0.75439,4302.2,4302.1,0.5895]
[1759321103240,0.75439,4302.2,4302.1,1.0820353]
[1759321103542,0.41819,4302.2,4302.1,1.1404353]
[1759321103832,0.88301,4302.0,4301.9,0.8320353]
[1759321104027,0.41821,4302.0,4301.9,0.4943]
[1759321104233,0.4182,4302.1,4302.0,0.3084]
[1759321104438,0.3348,4302.0,4301.9,0.1859]
[1759321104833,0.4648,4302.0,4301.9,0.1859]
[1759321106137,0.4648,4302.0,4301.6,0.00258272]
[1759321106138,0.75304,4301.7,4301.6,0.62689644]
[1759321106334,3.96084,4301.7,4301.6,2.72e-06]
[1759321106534,0.41832,4300.9,4300.7,0.8320353]
[1759321106734,0.41836,4300.4,4300.3,0.8320353]
[1759321107042,0.41838,4300.2,4300.0,0.8320353]
[1759321107342,0.4184,4300.0,4299.9,0.5584]
[1759321107539,0.42046384,4300.0,4299.9,0.56015017]
[1759321108037,0.42046384,4300.0,4299.9,0.31015017]
[1759321108434,0.59546384,4300.0,4299.9,0.00175017]
[1759321108835,5.59546384,4300.0,4299.9,0.00175017]
[1759321110843,8.80326384,4300.0,4299.9,0.00175017]
[1759321111441,8.86826384,4300.0,4299.9,0.00175017]
[1759321111649,1.04613,4299.6,4299.0,0.3084]
[1759321111850,1.04613,4299.6,4298.4,3.2078]
[1759321111851,0.59168,4299.2,4298.6,0.3084]
[1759321112233,3.62627,4299.3,4299.2,0.3084]
[1759321112439,0.1732,4299.2,4298.7,0.5584]
[1759321112634,0.41852,4298.8,4298.7,0.3084]
[1759321112840,0.4185,4299.0,4298.8,0.3084]
[1759321113046,0.4185,4299.0,4298.9,0.3084]
[1759321113244,3.2078,4299.3,4299.1,0.3084]
[1759321113546,0.41849,4299.2,4299.1,0.3084]
[1759321113746,0.41849,4299.2,4299.1,0.5584]
[1759321114548,0.41849,4299.2,4299.1,0.3084]
[1759321115351,3.2078,4299.8,4299.1,0.72689]
[1759321115651,0.41847,4299.3,4299.2,0.3084]
[1759321116555,0.41849,4299.1,4299.0,0.1278]
[1759321116755,0.5917,4299.0,4298.8,0.3084]
[1759321117252,3.2078,4299.3,4298.7,0.31127869]
[1759321117441,0.41851,4298.9,4298.7,0.31127869]
[1759321117641,0.41851,4298.9,4298.8,0.3084]
[1759321118951,0.4185,4299.1,4299.0,0.4362]
[1759321120239,3.2078,4299.3,4299.0,0.1278]
[1759321120451,0.41848,4299.2,4299.1,0.3084]
[1759321121246,3.2078,4299.3,4299.1,0.3084]
[1759321121446,0.41847,4299.3,4299.2,0.3084]
[1759321121650,3.2078,4299.9,4299.5,0.1278]
[1759321121853,0.41844,4299.6,4299.5,0.1278]
[1759321122247,0.41844,4299.6,4299.5,0.4362]
[1759321122751,0.41844,4299.6,4299.5,0.3084]
[1759321122948,0.41844,4299.6,4299.0,0.1278]
[1759321122949,0.41849,4299.1,4299.0,0.4362]
[1759321123545,0.41848,4299.2,4299.1,0.3084]
[1759321124841,0.249,4299.7,4299.0,0.1278]
[1759321125048,0.66743,4299.7,4299.6,0.3084]
[1759321125453,0.41843,4299.7,4299.6,0.3084]
[1759321125755,0.41843,4299.8,4299.7,0.3084]
[1759321126556,0.00206384,4300.0,4299.6,0.3084]
[1759321126758,0.41843,4299.8,4299.7,0.72683]
[1759321126953,0.41843,4299.8,4299.7,0.3084]
[1759321127452,0.41847,4299.3,4299.2,0.3084]
[1759321127654,0.5917,4299.0,4298.9,0.186]
[1759321127950,0.6367,4299.0,4298.9,0.186]
[1759321128346,0.41852,4298.8,4298.7,0.00287869]
[1759321128548,0.41852,4298.8,4298.7,0.31127869]
[1759321129151,0.59172,4298.8,4298.7,0.00287869]
[1759321130250,0.41852,4298.8,4298.7,0.31127869]
[1759321130854,3.79952,4298.8,4298.7,0.00287869]
[1759321131257,8.79952,4298.8,4298.7,0.00287869]
[1759321131765,0.59178,4298.2,4298.1,0.1861]
[1759321131966,3.79958,4298.2,4298.1,0.1861]
[1759321132260,0.41866,4297.4,4297.2,3.2078]
[1759321132462,0.1732,4297.8,4297.3,0.3084]
[1759321132463,0.4212,4297.8,4297.3,0.3084]
[1759321132667,0.41866,4297.4,4297.3,0.3084]
[1759321134753,0.248,4297.8,4297.3,0.3084]
[1759321134953,0.41865,4297.5,4297.3,0.3084]
[1759321135157,0.248,4297.8,4297.3,0.72706]
[1759321135362,0.41859,4298.1,4298.0,0.1344]
[1759321136064,0.41859,4298.1,4298.0,0.4597]
[1759321136562,3.2078,4298.2,4298.1,0.3253]
[1759321138162,3.2078,4298.8,4298.4,0.41856]
[1759321138463,0.41853,4298.7,4298.6,0.3253]
[1759321138966,0.41853,4298.7,4298.6,0.5733]
[1759321139166,3.2078,4298.8,4298.7,0.3253]
[1759321139466,0.41852,4298.8,4298.7,0.3253]
[1759321141665,0.41848,4299.2,4299.0,0.1344]
[1759321141866,0.41848,4299.2,4299.1,0.3253]
[1759321142061,0.41853,4298.7,4298.6,1.1573353]
[1759321142260,0.41853,4298.7,4298.6,0.3253]
[1759321142663,3.4548,4299.3,4298.6,0.3253]
[1759321142865,3.4548,4299.3,4298.5,1.2134353]
[1759321142866,3.2078,4299.3,4299.1,0.3253]
[1759321143061,3.2078,4299.3,4299.0,0.1344]
[1759321143062,0.41849,4299.1,4299.0,1.2134353]
[1759321143263,0.41849,4299.1,4298.9,0.8320353]
[1759321143463,0.41851,4298.9,4298.7,0.8320353]
[1759321144067,0.41851,4298.9,4298.8,0.3253]
[1759321145466,0.41855,4298.5,4298.4,1.1573353]
[1759321145671,0.41857,4298.3,4298.2,1.1573353]
[1759321145965,0.41857,4298.3,4298.2,0.3253]
[1759321146864,3.62633,4298.7,4298.6,0.3253]
[1759321149160,3.2078,4298.7,4298.6,0.3253]
[1759321149567,3.62633,4298.7,4298.6,0.3253]
[1759321150873,3.2078,4299.2,4299.1,0.3253]
[1759321151061,3.62628,4299.2,4299.1,0.3253]
[1759321151370,3.2078,4299.2,4299.1,0.74379]
[1759321151569,0.41844,4299.6,4299.5,0.1344]
[1759321151764,3.2078,4299.7,4299.6,0.74374]
[1759321151966,3.2078,4299.7,4299.6,0.3253]
[1759321152267,3.2078,4299.7,4299.6,1.15904016]
[1759321152468,0.41843,4299.8,4299.6,0.3253]
[1759321152668,0.59233,4299.8,4299.6,0.3253]
[1759321152966,0.41843,4299.8,4299.6,0.3253]
[1759321153167,0.41846,4299.4,4299.3,0.83374016]
[1759321153369,0.41846,4299.4,4299.3,1.15904016]
[1759321153566,0.41844,4299.6,4299.4,0.3253]
[1759321153773,0.41844,4299.6,4299.5,0.4597]
[1759321155073,0.00206384,4300.0,4299.5,0.1344]
[1759321155274,0.41842,4299.8,4299.6,0.3253]
[1759321155474,0.00206384,4300.0,4299.9,0.3253]
[1759321155674,0.00206384,4300.0,4299.9,0.5713]
[1759321156076,0.00206384,4300.0,4299.9,6.40504016]
[1759321156770,0.00206384,4300.0,4299.9,5.5713]
[1759321158076,0.00206384,4300.0,4299.9,0.5713]
[1759321158273,0.00206384,4300.0,4299.9,41.3713]
[1759321158781,0.00206384,4300.0,4299.9,0.5713]
[1759321159185,0.00206384,4300.0,4299.9,1.40361485]
[1759321159480,0.00206384,4300.0,4299.9,0.5713]
[1759321160378,0.00206384,4300.0,4299.9,1.40308043]
[1759321160979,0.00206384,4300.0,4299.9,41.1253]
[1759321161181,0.17576384,4300.0,4299.6,0.83178043]
[1759321161374,0.41843,4299.7,4299.6,0.322]
[1759321161578,0.41843,4299.7,4299.6,0.568]
[1759321163275,0.41843,4299.7,4299.5,3.3422]
[1759321163480,0.41847,4299.3,4299.2,0.3344]
[1759321166383,0.41847,4299.3,4299.2,0.7585]
[1759321166589,0.41843,4299.7,4299.6,0.7585]
[1759321166792,0.41843,4299.7,4299.6,1.38316816]
[1759321166988,0.42046384,4300.0,4299.9,0.4241]
[1759321167183,0.63306384,4300.0,4299.9,1.0035]
[1759321167490,0.42046384,4300.0,4299.9,1.0035]
[1759321167988,0.63306384,4300.0,4299.9,1.3832237]
[1759321168778,1.01256384,4300.0,4299.9,0.6247237]
[1759321168982,0.1737,4299.9,4299.7,0.6247237]
[1759321169183,0.83684,4299.6,4299.5,0.13]
[1759321169388,0.00206384,4300.0,4299.5,0.3346]
[1759321169582,0.00206384,4300.0,4299.9,0.7585]
[1759321169583,0.42046384,4300.0,4299.9,0.7585]
[1759321169780,0.42046384,4300.0,4299.9,1.0035]
[1759321170195,0.42046384,4300.0,4299.9,1.42191]
[1759321170490,0.00206384,4300.0,4299.9,1.42191]
[1759321170880,3.2078,4300.8,4300.3,0.41837]
[1759321171086,3.2078,4300.8,4299.8,1.04605]
[1759321171087,3.62612,4300.8,4300.7,0.95927071]
[1759321171287,3.2078,4300.8,4300.7,0.3344]
[1759321171486,3.2078,4300.8,4300.7,0.5794]
[1759321171693,0.41832,4300.9,4300.8,0.3344]
[1759321171881,0.42038294,4300.9,4300.8,0.33710262]
[1759321172693,0.00206294,4300.9,4300.8,0.33710262]
[1759321173191,3.2078,4302.0,4300.8,6.16956837]
[1759321173388,3.2078,4302.5,4302.1,0.3344]
[1759321173891,0.4182,4302.1,4302.0,1.08875045]
[1759321174091,0.4182,4302.1,4302.0,0.4644]
[1759321174291,0.42029926,4302.1,4302.0,0.4644]
[1759321175390,0.00209926,4302.1,4302.0,0.7094]
[1759321176800,0.00209926,4302.1,4302.0,0.4644]
[1759321176999,0.00209926,4302.1,4302.0,0.7104]
[1759321178389,0.00209926,4302.1,4302.0,0.7094]
[1759321178890,0.00209926,4302.1,4302.0,1.1335]
[1759321182182,0.21469926,4302.1,4302.0,0.8885]
[1759321182390,0.42049926,4302.1,4302.0,1.1335]
[1759321182793,0.21469926,4302.1,4302.0,1.1335]
[1759321183593,0.21469926,4302.1,4302.0,0.8885]
[1759321183890,0.21469926,4302.1,4302.0,1.1335]
[1759321184591,0.00209926,4302.1,4302.0,1.1335]
[1759321184791,0.42029926,4302.1,4302.0,1.1335]
[1759321185787,0.63289926,4302.1,4302.0,0.8885]
[1759321185993,0.63289926,4302.1,4302.0,1.1335]
[1759321186296,0.63289926,4302.1,4302.0,0.8885]
[1759321186884,0.83869926,4302.1,4302.0,0.8885]
[1759321191191,0.63289926,4302.1,4302.0,0.8885]
[1759321192192,0.83869926,4302.1,4302.0,0.6839]
[1759321192392,0.83869926,4302.1,4302.0,0.8885]
[1759321195194,1.1554,4301.1,4301.0,0.4398]
[1759321195398,1.1554,4301.1,4301.0,0.2223]
[1759321195598,0.8436,4301.1,4301.0,0.5719]
[1759321195796,0.6275,4301.1,4301.0,0.5719]
[1759321197200,1.1554,4301.1,4301.0,0.7647]
[1759321197403,1.1554,4301.1,4301.0,0.2223]
[1759321197697,1.1554,4301.1,4301.0,0.5472]
[1759321197906,0.9393,4301.1,4301.0,0.8968]
[1759321198094,1.1554,4301.1,4301.0,0.2223]
[1759321198294,1.1554,4301.1,4301.0,0.7647]
[1759321198800,1.1554,4301.1,4301.0,0.2223]
[1759321198994,0.4183,4301.1,4301.0,0.8968]
[1759321200210,3.2078,4301.2,4301.0,0.5719]
[1759321200408,3.62609,4301.2,4301.1,1.84116727]
[1759321201006,4.36319,4301.2,4301.1,1.0087]
[1759321201204,4.36319,4301.2,4301.1,0.2223]
[1759321201399,4.36319,4301.2,4301.1,0.7647]
[1759321201706,3.62609,4301.2,4301.1,0.7647]
[1759321202804,3.83529,4301.2,4301.1,0.7647]
[1759321202999,4.36319,4301.2,4301.1,0.7647]
[1759321203302,3.62609,4301.2,4301.1,0.7647]
[1759321203600,0.2092,4301.5,4301.4,0.7647]
[1759321203801,0.41826,4301.6,4301.5,1.31506]
[1759321204000,0.52309926,4302.1,4302.0,0.4398]
[1759321204208,1.15739926,4302.1,4302.0,0.7647]
[1759321204409,1.15739926,4302.1,4302.0,0.8968]
[1759321205009,1.15739926,4302.1,4302.0,1.52243856]
[1759321205813,1.15739926,4302.1,4302.0,1.39033856]
[1759321206111,1.15739926,4302.1,4302.0,0.7647]
[1759321206313,1.15739926,4302.1,4302.0,1.39033856]
[1759321207608,0.62949926,4302.1,4302.0,1.52243856]
[1759321207914,0.42029926,4302.1,4302.0,1.73098475]
[1759321210613,1.15739926,4302.1,4302.0,1.59888475]
[1759321210813,1.15739926,4302.1,4302.0,0.6828]
[1759321211013,1.15739926,4302.1,4302.0,1.84188475]
[1759321213614,1.15739926,4302.1,4302.0,1.97398475]
[1759321214315,1.15739926,4302.1,4302.0,1.84188475]
[1759321215012,1.15739926,4302.1,4302.0,1.59888475]
[1759321215217,1.15739926,4302.1,4302.0,1.84188475]
[1759321215913,0.00209926,4302.1,4302.0,1.55801]
[1759321216107,0.00209926,4302.1,4302.0,2.80775471]
[1759321216715,0.42029926,4302.1,4302.0,2.80775471]
[1759321216909,0.42029926,4302.1,4302.0,0.8968]
[1759321217115,0.62949926,4302.1,4302.0,1.1388]
[1759321217417,0.00209926,4302.1,4302.0,1.1388]
[1759321218222,0.00209926,4302.1,4302.0,1.55701]
[1759321218919,0.00209926,4302.1,4302.0,2.80675471]
[1759321219222,0.42029926,4302.1,4302.0,1.55701]
[1759321219925,0.42029926,4302.1,4302.0,1.1388]
[1759321220725,0.00209926,4302.1,4302.0,1.55701]
[1759321220923,0.42029926,4302.1,4302.0,1.31501]
[1759321221222,0.42029926,4302.1,4302.0,1.55701]
[1759321221423,0.00209926,4302.1,4302.0,1.55701]
[1759321221823,0.42029926,4302.1,4302.0,1.55701]
[1759321222330,0.00209926,4302.1,4302.0,1.55701]
[1759321222627,0.00209926,4302.1,4302.0,6.55701]
[1759321223437,0.41814,4302.7,4302.6,0.4395]
[1759321223732,0.41814,4302.7,4302.6,1.84773232]
[1759321223923,0.95544,4302.7,4302.6,1.60573232]
[1759321224129,1.17634,4302.7,4302.6,1.84773232]
[1759321224531,1.17817547,4302.7,4302.6,1.84773232]
[1759321225235,1.17817547,4302.7,4302.6,0.772]
[1759321225438,1.17817547,4302.7,4302.6,0.219]
[1759321225735,1.17817547,4302.7,4302.6,0.62513561]
[1759321226034,1.17817547,4302.7,4302.6,0.86713561]
[1759321226533,1.17817547,4302.7,4302.6,0.62513561]
[1759321227533,1.17635,4302.6,4302.5,0.62513561]
[1759321227730,1.17635,4302.6,4302.5,1.17663561]
[1759321227933,1.17635,4302.6,4302.5,0.84413561]